[Event "*** Titled Tuesday Blitz"]
[Site "Chess.com"]
[Date "2020.05.26"]
[Round "5"]
[White "Tenamu"]
[Black "MilosJi"]
[Result "0-1"]
[WhiteElo "2348"]
[BlackElo "2527"]
[TimeControl "180+1"]
[EndTime "10:58:13 PDT"]
[Termination "MilosJi won by resignation"]

1. d4 {[%clk 0:02:58]} 1... d5 {[%clk 0:02:57.9]} 2. Nc3 {[%clk 0:02:57.7]} 2...
Bf5 {[%clk 0:02:56.8]} 3. Bf4 {[%clk 0:02:57.7]} 3... e6 {[%clk 0:02:49]} 4. Nb5
{[%clk 0:02:56.2]} 4... Na6 {[%clk 0:02:48.1]} 5. e3 {[%clk 0:02:50.8]} 5... c6
{[%clk 0:02:43.3]} 6. Nc3 {[%clk 0:02:50.2]} 6... Nc7 {[%clk 0:02:36.2]} 7. g4
{[%clk 0:02:33.8]} 7... Bg6 {[%clk 0:02:28.7]} 8. h4 {[%clk 0:02:33.5]} 8... h5
{[%clk 0:02:28.5]} 9. g5 {[%clk 0:02:32.9]} 9... Ne7 {[%clk 0:02:18.4]} 10. Bd3
{[%clk 0:02:32.4]} 10... Nf5 {[%clk 0:02:12.2]} 11. Nf3 {[%clk 0:02:30.1]} 11...
Bd6 {[%clk 0:02:06.8]} 12. Ne5 {[%clk 0:02:29.5]} 12... Bxe5 {[%clk 0:02:04.3]}
13. Bxe5 {[%clk 0:02:29.2]} 13... a6 {[%clk 0:02:02.6]} 14. Qd2 {[%clk
0:02:26.1]} 14... f6 {[%clk 0:01:59.6]} 15. gxf6 {[%clk 0:02:21.7]} 15... gxf6
{[%clk 0:01:59.7]} 16. Bf4 {[%clk 0:02:18.9]} 16... Nb5 {[%clk 0:01:59.1]} 17.
O-O-O {[%clk 0:02:08.5]} 17... Qe7 {[%clk 0:01:53.6]} 18. Rdg1 {[%clk
0:02:03.2]} 18... Qf7 {[%clk 0:01:53]} 19. f3 {[%clk 0:01:53.2]} 19... O-O-O
{[%clk 0:01:40.4]} 20. Ne2 {[%clk 0:01:51.7]} 20... Nbd6 {[%clk 0:01:37.2]} 21.
e4 {[%clk 0:01:45.6]} 21... Ne7 {[%clk 0:01:31.1]} 22. Bxd6 {[%clk 0:01:39.1]}
22... Rxd6 {[%clk 0:01:30.3]} 23. Nf4 {[%clk 0:01:37.5]} 23... Bh7 {[%clk
0:01:23.4]} 24. Qh2 {[%clk 0:01:22.5]} 24... e5 {[%clk 0:01:11.8]} 25. Ne2
{[%clk 0:01:11.6]} 25... Re6 {[%clk 0:01:07.4]} 26. Qh3 {[%clk 0:01:05.7]} 26...
Kb8 {[%clk 0:01:02.4]} 27. dxe5 {[%clk 0:01:01.3]} 27... fxe5 {[%clk 0:01:01.6]}
28. Rg5 {[%clk 0:00:59.4]} 28... Rf6 {[%clk 0:00:53.6]} 29. Rxe5 {[%clk
0:00:51.4]} 29... Rxf3 {[%clk 0:00:44.5]} 30. Qd7 {[%clk 0:00:47.6]} 30... Ng6
{[%clk 0:00:38.8]} 31. Qd6+ {[%clk 0:00:42.3]} 31... Ka8 {[%clk 0:00:37.4]} 32.
Rf5 {[%clk 0:00:41.8]} 32... Rxf5 {[%clk 0:00:34.9]} 33. exf5 {[%clk 0:00:41.7]}
33... Ne7 {[%clk 0:00:32.6]} 34. Nd4 {[%clk 0:00:40.9]} 34... Nxf5 {[%clk
0:00:24.5]} 35. Nxf5 {[%clk 0:00:35.7]} 35... Bxf5 {[%clk 0:00:24.1]} 36. Rf1
{[%clk 0:00:35.9]} 36... Qe6 {[%clk 0:00:21]} 37. Qxe6 {[%clk 0:00:32.8]} 37...
Bxe6 {[%clk 0:00:21.2]} 38. Rf6 {[%clk 0:00:32.2]} 38... Bg4 {[%clk 0:00:21]}
39. a4 {[%clk 0:00:29.7]} 39... Re8 {[%clk 0:00:20.8]} 40. a5 {[%clk 0:00:27.7]}
40... Re3 {[%clk 0:00:20.2]} 41. b4 {[%clk 0:00:26.9]} 41... Rh3 {[%clk
0:00:20]} 42. b5 {[%clk 0:00:21.1]} 42... cxb5 {[%clk 0:00:18]} 43. Rd6 {[%clk
0:00:21.2]} 43... Bf3 {[%clk 0:00:17.7]} 44. Bf5 {[%clk 0:00:20.2]} 44... Rxh4
{[%clk 0:00:17.4]} 45. Rd8+ {[%clk 0:00:19.3]} 45... Ka7 {[%clk 0:00:17.1]} 46.
Bc8 {[%clk 0:00:19.3]} 46... Rc4 {[%clk 0:00:17.2]} 47. Be6 {[%clk 0:00:18.3]}
47... Be4 {[%clk 0:00:16.8]} 48. Kb2 {[%clk 0:00:16.8]} 48... Rxc2+ {[%clk
0:00:16.6]} 49. Kb3 {[%clk 0:00:17.1]} 49... Rc4 {[%clk 0:00:16.6]} 50. Bf7
{[%clk 0:00:16.2]} 50... h4 {[%clk 0:00:16.6]} 51. Rh8 {[%clk 0:00:15.8]} 51...
Bg2 {[%clk 0:00:16.5]} 52. Be6 {[%clk 0:00:14.5]} 52... h3 {[%clk 0:00:16.6]}
53. Rh7 {[%clk 0:00:14.5]} 53... Kb8 {[%clk 0:00:16.2]} 54. Bxh3 {[%clk
0:00:11.3]} 54... Bxh3 {[%clk 0:00:15.9]} 55. Rxh3 {[%clk 0:00:12.2]} 55... Ra4
{[%clk 0:00:16.1]} 56. Rh5 {[%clk 0:00:11.1]} 56... Rxa5 {[%clk 0:00:16]} 57.
Rxd5 {[%clk 0:00:11.7]} 57... Ra4 {[%clk 0:00:16.2]} 58. Rd6 {[%clk 0:00:11]}
58... Ka7 {[%clk 0:00:16.5]} 59. Rd7 {[%clk 0:00:11.1]} 59... Rc4 {[%clk
0:00:16.6]} 60. Re7 {[%clk 0:00:11.5]} 60... a5 {[%clk 0:00:16.7]} 61. Rf7
{[%clk 0:00:11.8]} 61... a4+ {[%clk 0:00:16.5]} 62. Ka3 {[%clk 0:00:12]} 62...
Ka6 {[%clk 0:00:16.7]} 63. Rf6+ {[%clk 0:00:11.9]} 63... Ka5 {[%clk 0:00:16.8]}
64. Rf7 {[%clk 0:00:12.8]} 64... Rc3+ {[%clk 0:00:16.4]} 65. Kb2 {[%clk
0:00:12.6]} 65... Rb3+ {[%clk 0:00:16.5]} 66. Ka2 {[%clk 0:00:11.8]} 66... b6
{[%clk 0:00:16.7]} 67. Rf4 {[%clk 0:00:09.5]} 67... Rd3 {[%clk 0:00:15.8]} 68.
Kb2 {[%clk 0:00:08.5]} 68... b4 {[%clk 0:00:15.9]} 69. Rf5+ {[%clk 0:00:08.4]}
69... b5 {[%clk 0:00:16]} 70. Rf8 {[%clk 0:00:09.3]} 70... a3+ {[%clk 0:00:16]}
71. Kc2 {[%clk 0:00:09]} 71... Rc3+ {[%clk 0:00:16]} 72. Kb1 {[%clk 0:00:09.1]}
72... b3 {[%clk 0:00:16.1]} 73. Ra8+ {[%clk 0:00:06.3]} 73... Kb4 {[%clk
0:00:16.1]} 74. Rb8 {[%clk 0:00:04.2]} 74... Rh3 {[%clk 0:00:15.9]} 75. Rxb5+
{[%clk 0:00:03.1]} 75... Kxb5 {[%clk 0:00:15.5]} 0-1

[Event "*** Titled Tuesday Blitz"]
[Site "Chess.com"]
[Date "2020.05.26"]
[Round "5"]
[White "Evgeny81"]
[Black "Benjoneliere44"]
[Result "0-1"]
[WhiteElo "2715"]
[BlackElo "2559"]
[TimeControl "180+1"]
[EndTime "10:58:35 PDT"]
[Termination "Benjoneliere44 won on time"]

1. e4 {[%clk 0:03:00.9]} 1... c5 {[%clk 0:02:58.2]} 2. Nf3 {[%clk 0:03:00.5]}
2... d6 {[%clk 0:02:57.1]} 3. Bb5+ {[%clk 0:03:00.1]} 3... Nc6 {[%clk
0:02:52.3]} 4. O-O {[%clk 0:02:58.9]} 4... Bd7 {[%clk 0:02:51.7]} 5. Re1 {[%clk
0:02:57.1]} 5... Nf6 {[%clk 0:02:49.9]} 6. c3 {[%clk 0:02:56]} 6... a6 {[%clk
0:02:49.9]} 7. Bf1 {[%clk 0:02:55.6]} 7... Bg4 {[%clk 0:02:49.6]} 8. d3 {[%clk
0:02:53.6]} 8... Bxf3 {[%clk 0:02:45.9]} 9. Qxf3 {[%clk 0:02:52.9]} 9... g6
{[%clk 0:02:45]} 10. Qd1 {[%clk 0:02:51.5]} 10... Bg7 {[%clk 0:02:43.9]} 11. d4
{[%clk 0:02:49.6]} 11... cxd4 {[%clk 0:02:41.7]} 12. cxd4 {[%clk 0:02:49.8]}
12... O-O {[%clk 0:02:42.3]} 13. Nc3 {[%clk 0:02:48.9]} 13... Qb6 {[%clk
0:02:33.8]} 14. d5 {[%clk 0:02:34.5]} 14... Ne5 {[%clk 0:02:26]} 15. h3 {[%clk
0:02:31]} 15... Rfc8 {[%clk 0:02:22.9]} 16. Qb3 {[%clk 0:02:22.5]} 16... Qxb3
{[%clk 0:02:20.1]} 17. axb3 {[%clk 0:02:23.1]} 17... Ned7 {[%clk 0:02:17.7]} 18.
b4 {[%clk 0:02:07.2]} 18... Ne8 {[%clk 0:02:09.1]} 19. Bd2 {[%clk 0:02:00.7]}
19... Bd4 {[%clk 0:02:05.2]} 20. Reb1 {[%clk 0:01:52]} 20... Nef6 {[%clk
0:01:56.7]} 21. b5 {[%clk 0:01:43]} 21... Bxc3 {[%clk 0:01:51]} 22. Bxc3 {[%clk
0:01:20.3]} 22... Nxe4 {[%clk 0:01:50]} 23. Be1 {[%clk 0:01:20.5]} 23... axb5
{[%clk 0:01:45.2]} 24. Rxa8 {[%clk 0:01:19]} 24... Rxa8 {[%clk 0:01:44.2]} 25.
Bxb5 {[%clk 0:01:19.6]} 25... Ndf6 {[%clk 0:01:40.5]} 26. f3 {[%clk 0:01:14.8]}
26... Nc5 {[%clk 0:01:34.6]} 27. b4 {[%clk 0:01:15]} 27... Na6 {[%clk
0:01:33.9]} 28. Bc4 {[%clk 0:01:07.5]} 28... Nc7 {[%clk 0:01:29.8]} 29. Rd1
{[%clk 0:01:06.9]} 29... b5 {[%clk 0:01:17.3]} 30. Bd3 {[%clk 0:00:57]} 30...
Ncxd5 {[%clk 0:01:07.5]} 31. Bxb5 {[%clk 0:00:55.2]} 31... Rb8 {[%clk
0:01:07.1]} 32. Bc4 {[%clk 0:00:53.7]} 32... Nxb4 {[%clk 0:01:06.5]} 33. Bh4
{[%clk 0:00:53]} 33... Kg7 {[%clk 0:01:01.6]} 34. Be2 {[%clk 0:00:51.5]} 34...
Nc6 {[%clk 0:00:58.8]} 35. Bf2 {[%clk 0:00:50.1]} 35... g5 {[%clk 0:00:56.4]}
36. Be3 {[%clk 0:00:47]} 36... h6 {[%clk 0:00:56]} 37. Bf2 {[%clk 0:00:46.9]}
37... Rb2 {[%clk 0:00:53.8]} 38. Kf1 {[%clk 0:00:43.4]} 38... Rc2 {[%clk
0:00:42.8]} 39. Bd3 {[%clk 0:00:42.7]} 39... Rc3 {[%clk 0:00:41]} 40. Be2 {[%clk
0:00:42.2]} 40... Ne5 {[%clk 0:00:39.1]} 41. Bd4 {[%clk 0:00:41.7]} 41... Rc2
{[%clk 0:00:39.3]} 42. Rb1 {[%clk 0:00:41.3]} 42... Nh5 {[%clk 0:00:37.2]} 43.
Bf2 {[%clk 0:00:24.6]} 43... Nf4 {[%clk 0:00:36.3]} 44. Bd1 {[%clk 0:00:24.7]}
44... Ra2 {[%clk 0:00:31]} 45. Bb3 {[%clk 0:00:24.8]} 45... Rd2 {[%clk 0:00:28]}
46. Be3 {[%clk 0:00:22.5]} 46... Rd3 {[%clk 0:00:21.3]} 47. Bf2 {[%clk
0:00:22.4]} 47... Rc3 {[%clk 0:00:20.5]} 48. Bd4 {[%clk 0:00:20.6]} 48... Rd3
{[%clk 0:00:19.5]} 49. Bf2 {[%clk 0:00:20]} 49... h5 {[%clk 0:00:19.7]} 50. Bc2
{[%clk 0:00:17.6]} 50... Rd2 {[%clk 0:00:19]} 51. Bb3 {[%clk 0:00:16]} 51...
Ned3 {[%clk 0:00:18.2]} 52. Be3 {[%clk 0:00:16.1]} 52... Re2 {[%clk 0:00:14.4]}
53. Bd4+ {[%clk 0:00:15.8]} 53... e5 {[%clk 0:00:13.9]} 54. Ba7 {[%clk
0:00:13.1]} 54... Rxg2 {[%clk 0:00:12.8]} 55. Bc4 {[%clk 0:00:13.3]} 55... Rh2
{[%clk 0:00:12.5]} 56. Rb7 {[%clk 0:00:12.5]} 56... Rh1+ {[%clk 0:00:09.3]} 57.
Bg1 {[%clk 0:00:12.5]} 57... Nxh3 {[%clk 0:00:09.3]} 58. Bxd3 {[%clk 0:00:08.3]}
58... Rxg1+ {[%clk 0:00:09.9]} 59. Ke2 {[%clk 0:00:08.5]} 59... Nf4+ {[%clk
0:00:09.3]} 60. Kf2 {[%clk 0:00:09]} 60... Rg2+ {[%clk 0:00:09.2]} 61. Kf1
{[%clk 0:00:09.6]} 61... Rd2 {[%clk 0:00:08.5]} 62. Bf5 {[%clk 0:00:09.5]} 62...
h4 {[%clk 0:00:07.9]} 63. Ke1 {[%clk 0:00:09.8]} 63... Rd4 {[%clk 0:00:07.6]}
64. Kf1 {[%clk 0:00:10]} 64... h3 {[%clk 0:00:08]} 65. Kg1 {[%clk 0:00:10.4]}
65... Rd1+ {[%clk 0:00:08.2]} 66. Kh2 {[%clk 0:00:10.2]} 66... Rd2+ {[%clk
0:00:09.1]} 67. Kg1 {[%clk 0:00:10.6]} 67... h2+ {[%clk 0:00:10]} 68. Kh1 {[%clk
0:00:11.1]} 68... Nd3 {[%clk 0:00:09.7]} 69. Be6 {[%clk 0:00:08.3]} 69... Kf6
{[%clk 0:00:06.9]} 70. Bxf7 {[%clk 0:00:08]} 70... g4 {[%clk 0:00:07.2]} 71.
fxg4 {[%clk 0:00:07.3]} 71... Kg5 {[%clk 0:00:07.8]} 72. Be6 {[%clk 0:00:06.2]}
72... Kf4 {[%clk 0:00:07.9]} 73. Rb1 {[%clk 0:00:04.1]} 73... Kg3 {[%clk
0:00:07.7]} 74. Rb3 {[%clk 0:00:02.6]} 74... Kh4 {[%clk 0:00:06.2]} 75. Bf5
{[%clk 0:00:01.5]} 75... Nf2+ {[%clk 0:00:04.3]} 76. Kxh2 {[%clk 0:00:01.7]}
76... Nxg4+ {[%clk 0:00:05]} 77. Kg1 {[%clk 0:00:02.2]} 77... Rd1+ {[%clk
0:00:04.4]} 78. Kg2 {[%clk 0:00:01.9]} 78... Rd2+ {[%clk 0:00:05.3]} 79. Kg1
{[%clk 0:00:02.1]} 79... d5 {[%clk 0:00:05.5]} 80. Be6 {[%clk 0:00:01.7]} 80...
e4 {[%clk 0:00:05.1]} 81. Rb8 {[%clk 0:00:01.6]} 81... e3 {[%clk 0:00:04.4]} 0-1

[Event "*** Titled Tuesday Blitz"]
[Site "Chess.com"]
[Date "2020.05.26"]
[Round "5"]
[White "algatar2020"]
[Black "Chuchofrio1"]
[Result "1/2-1/2"]
[WhiteElo "1728"]
[BlackElo "2273"]
[TimeControl "180+1"]
[EndTime "10:58:43 PDT"]
[Termination "Game drawn - insufficient material"]

1. d4 {[%clk 0:03:00]} 1... f5 {[%clk 0:02:59.7]} 2. Nf3 {[%clk 0:02:58.9]} 2...
Nf6 {[%clk 0:02:59.5]} 3. Bf4 {[%clk 0:02:59.4]} 3... d6 {[%clk 0:02:59.5]} 4.
e3 {[%clk 0:02:59.2]} 4... e6 {[%clk 0:02:59.5]} 5. c4 {[%clk 0:02:58.9]} 5...
Be7 {[%clk 0:03:00.4]} 6. Nc3 {[%clk 0:02:58.8]} 6... O-O {[%clk 0:03:00.3]} 7.
h3 {[%clk 0:02:58]} 7... Qe8 {[%clk 0:03:00.4]} 8. Be2 {[%clk 0:02:57.3]} 8...
Nc6 {[%clk 0:02:59.4]} 9. O-O {[%clk 0:02:55.6]} 9... Bd8 {[%clk 0:02:58.2]} 10.
a3 {[%clk 0:02:51.7]} 10... e5 {[%clk 0:02:57.5]} 11. Bh2 {[%clk 0:02:50.8]}
11... Kh8 {[%clk 0:02:46.8]} 12. b4 {[%clk 0:02:49.4]} 12... e4 {[%clk
0:02:45.2]} 13. Nd2 {[%clk 0:02:48.5]} 13... Ne7 {[%clk 0:02:43.2]} 14. d5
{[%clk 0:02:45.1]} 14... Ng6 {[%clk 0:02:41.2]} 15. Bh5 {[%clk 0:02:37.4]} 15...
Nxh5 {[%clk 0:02:39.9]} 16. Qxh5 {[%clk 0:02:36.4]} 16... Ne5 {[%clk 0:02:39.8]}
17. Qxe8 {[%clk 0:02:31.5]} 17... Rxe8 {[%clk 0:02:40.7]} 18. Ne2 {[%clk
0:02:29.5]} 18... Bf6 {[%clk 0:02:40.4]} 19. Rab1 {[%clk 0:02:25.8]} 19... Bd7
{[%clk 0:02:38.4]} 20. Nf4 {[%clk 0:02:24.9]} 20... g5 {[%clk 0:02:36.9]} 21.
Nh5 {[%clk 0:02:20.4]} 21... Bd8 {[%clk 0:02:33.5]} 22. Bxe5+ {[%clk 0:02:16.1]}
22... Rxe5 {[%clk 0:02:31.1]} 23. Nb3 {[%clk 0:02:07.7]} 23... Be8 {[%clk
0:02:23.7]} 24. Ng3 {[%clk 0:02:06.7]} 24... f4 {[%clk 0:02:23.7]} 25. Ne2
{[%clk 0:02:05.5]} 25... f3 {[%clk 0:02:19.1]} 26. gxf3 {[%clk 0:02:04.3]} 26...
exf3 {[%clk 0:02:20]} 27. Ng3 {[%clk 0:01:58.8]} 27... Bg6 {[%clk 0:02:19.5]}
28. Rbc1 {[%clk 0:01:44.9]} 28... b6 {[%clk 0:02:02.7]} 29. Nd4 {[%clk 0:01:44]}
29... Bf6 {[%clk 0:02:00.3]} 30. Nxf3 {[%clk 0:01:43]} 30... Re7 {[%clk
0:01:56.5]} 31. Nd4 {[%clk 0:01:37.3]} 31... h6 {[%clk 0:01:49.8]} 32. Rfd1
{[%clk 0:01:34.6]} 32... Be5 {[%clk 0:01:47.3]} 33. Ngf5 {[%clk 0:01:22.1]}
33... Rh7 {[%clk 0:01:37.6]} 34. Ng3 {[%clk 0:01:11.2]} 34... Re8 {[%clk
0:01:33.9]} 35. Re1 {[%clk 0:01:09.1]} 35... Rf7 {[%clk 0:01:04.2]} 36. Kg2
{[%clk 0:01:03.2]} 36... Rfe7 {[%clk 0:00:46.3]} 37. Red1 {[%clk 0:01:01.1]}
37... h5 {[%clk 0:00:29.3]} 38. a4 {[%clk 0:00:55.9]} 38... Rf7 {[%clk
0:00:27.7]} 39. Ne6 {[%clk 0:00:37.9]} 39... h4 {[%clk 0:00:24.9]} 40. Nf1
{[%clk 0:00:19.5]} 40... Be4+ {[%clk 0:00:21.5]} 41. Kg1 {[%clk 0:00:19]} 41...
Bf6 {[%clk 0:00:20.8]} 42. Nd2 {[%clk 0:00:16.7]} 42... Bf5 {[%clk 0:00:21.2]}
43. Kg2 {[%clk 0:00:15.6]} 43... Kh7 {[%clk 0:00:17.8]} 44. Nd4 {[%clk
0:00:13.8]} 44... Bxd4 {[%clk 0:00:14.2]} 45. exd4 {[%clk 0:00:14.7]} 45... Re2
{[%clk 0:00:14.4]} 46. Nf3 {[%clk 0:00:14.7]} 46... Be4 {[%clk 0:00:13.8]} 47.
Rc3 {[%clk 0:00:14.7]} 47... Bxf3+ {[%clk 0:00:14.7]} 48. Rxf3 {[%clk
0:00:14.7]} 48... Rxf3 {[%clk 0:00:13.3]} 49. Kxf3 {[%clk 0:00:15.6]} 49... Rc2
{[%clk 0:00:13.5]} 50. c5 {[%clk 0:00:15.6]} 50... bxc5 {[%clk 0:00:14.4]} 51.
dxc5 {[%clk 0:00:16.5]} 51... dxc5 {[%clk 0:00:15.3]} 52. bxc5 {[%clk
0:00:17.4]} 52... Rxc5 {[%clk 0:00:16.1]} 53. d6 {[%clk 0:00:18.3]} 53... cxd6
{[%clk 0:00:16.6]} 54. Rxd6 {[%clk 0:00:19.2]} 54... Rc3+ {[%clk 0:00:17.3]} 55.
Kg2 {[%clk 0:00:19.2]} 55... Rc4 {[%clk 0:00:17.4]} 56. Rd7+ {[%clk 0:00:19.5]}
56... Kh6 {[%clk 0:00:17.8]} 57. Rxa7 {[%clk 0:00:20.4]} 57... Rc1 {[%clk
0:00:17.3]} 58. Ra8 {[%clk 0:00:20.5]} 58... Ra1 {[%clk 0:00:17.5]} 59. a5
{[%clk 0:00:21.4]} 59... Kg7 {[%clk 0:00:18]} 60. a6 {[%clk 0:00:21.6]} 60...
Kh7 {[%clk 0:00:18.4]} 61. Kf3 {[%clk 0:00:20.9]} 61... Ra4 {[%clk 0:00:18.5]}
62. Ke3 {[%clk 0:00:20.8]} 62... Kg7 {[%clk 0:00:18.3]} 63. Kd3 {[%clk
0:00:21.2]} 63... Ra3+ {[%clk 0:00:18.6]} 64. Kc4 {[%clk 0:00:19.5]} 64... Rxh3
{[%clk 0:00:19.5]} 65. a7 {[%clk 0:00:19.2]} 65... Ra3 {[%clk 0:00:19.5]} 66.
Kd4 {[%clk 0:00:15.1]} 66... h3 {[%clk 0:00:19.7]} 67. Rb8 {[%clk 0:00:15]}
67... Rxa7 {[%clk 0:00:18.5]} 68. Rb1 {[%clk 0:00:15.9]} 68... Ra4+ {[%clk
0:00:17]} 69. Ke3 {[%clk 0:00:15.8]} 69... Rh4 {[%clk 0:00:16.7]} 70. Kf3 {[%clk
0:00:15.3]} 70... Kg6 {[%clk 0:00:16.2]} 71. Kg3 {[%clk 0:00:15.2]} 71... Kh5
{[%clk 0:00:16.3]} 72. Rh1 {[%clk 0:00:14.9]} 72... g4 {[%clk 0:00:13]} 73. Rd1
{[%clk 0:00:13.1]} 73... h2 {[%clk 0:00:10.3]} 74. Rh1 {[%clk 0:00:12.3]} 74...
Rh3+ {[%clk 0:00:10.5]} 75. Kg2 {[%clk 0:00:12.3]} 75... Kg5 {[%clk 0:00:08.1]}
76. Rxh2 {[%clk 0:00:12.4]} 76... Rxh2+ {[%clk 0:00:07.7]} 77. Kxh2 {[%clk
0:00:13.3]} 77... Kf4 {[%clk 0:00:07.9]} 78. Kg2 {[%clk 0:00:13.7]} 78... Ke4
{[%clk 0:00:08.3]} 79. Kg3 {[%clk 0:00:13.9]} 79... Kf5 {[%clk 0:00:08.6]} 80.
Kg2 {[%clk 0:00:14.8]} 80... Kf4 {[%clk 0:00:08.5]} 81. Kg1 {[%clk 0:00:13.5]}
81... Kf3 {[%clk 0:00:08.3]} 82. Kf1 {[%clk 0:00:13.8]} 82... g3 {[%clk
0:00:08.3]} 83. fxg3 {[%clk 0:00:13.9]} 83... Kxg3 {[%clk 0:00:08]} 1/2-1/2

[Event "*** Titled Tuesday Blitz"]
[Site "Chess.com"]
[Date "2020.05.26"]
[Round "5"]
[White "swisspower96"]
[Black "tigra"]
[Result "1/2-1/2"]
[WhiteElo "2600"]
[BlackElo "2752"]
[TimeControl "180+1"]
[EndTime "10:58:47 PDT"]
[Termination "Game drawn by stalemate"]

1. d4 {[%clk 0:03:00.4]} 1... Nf6 {[%clk 0:01:52.5]} 2. c4 {[%clk 0:02:59.5]}
2... g6 {[%clk 0:01:48]} 3. Nc3 {[%clk 0:02:59.4]} 3... d5 {[%clk 0:01:48.4]} 4.
cxd5 {[%clk 0:02:58.8]} 4... Nxd5 {[%clk 0:01:49.3]} 5. e4 {[%clk 0:02:59.5]}
5... Nxc3 {[%clk 0:01:49.8]} 6. bxc3 {[%clk 0:03:00.4]} 6... Bg7 {[%clk
0:01:50.5]} 7. Bc4 {[%clk 0:03:01]} 7... c5 {[%clk 0:01:51.2]} 8. Ne2 {[%clk
0:03:01.3]} 8... O-O {[%clk 0:01:51.4]} 9. O-O {[%clk 0:03:01.2]} 9... Nc6
{[%clk 0:01:52.1]} 10. Be3 {[%clk 0:03:01.8]} 10... b6 {[%clk 0:01:52.8]} 11.
Rc1 {[%clk 0:03:00.6]} 11... Qc7 {[%clk 0:01:52.4]} 12. Qd2 {[%clk 0:02:51.5]}
12... Rd8 {[%clk 0:01:47]} 13. Rfd1 {[%clk 0:02:50.7]} 13... Bb7 {[%clk
0:01:44.6]} 14. Qe1 {[%clk 0:02:46.9]} 14... Rac8 {[%clk 0:01:41]} 15. f3 {[%clk
0:02:35.8]} 15... Na5 {[%clk 0:01:37.2]} 16. Bd3 {[%clk 0:02:35.7]} 16... e5
{[%clk 0:01:37.1]} 17. h4 {[%clk 0:02:29.2]} 17... Qe7 {[%clk 0:01:33.5]} 18.
dxc5 {[%clk 0:02:14.2]} 18... bxc5 {[%clk 0:01:32.3]} 19. c4 {[%clk 0:02:14.5]}
19... Nc6 {[%clk 0:01:32]} 20. Nc3 {[%clk 0:02:14.5]} 20... Nd4 {[%clk
0:01:26.9]} 21. Nd5 {[%clk 0:02:10.3]} 21... Bxd5 {[%clk 0:01:20.2]} 22. cxd5
{[%clk 0:02:11.2]} 22... Bf6 {[%clk 0:01:20.2]} 23. h5 {[%clk 0:02:04.3]} 23...
Bg5 {[%clk 0:01:16.9]} 24. Bc4 {[%clk 0:01:50.5]} 24... Kg7 {[%clk 0:01:14.2]}
25. Rb1 {[%clk 0:01:49.5]} 25... Bxe3+ {[%clk 0:01:06.9]} 26. Qxe3 {[%clk
0:01:49.1]} 26... Rb8 {[%clk 0:01:07.5]} 27. h6+ {[%clk 0:01:39.8]} 27... Kf8
{[%clk 0:01:07.2]} 28. Qa3 {[%clk 0:01:40.5]} 28... Rb6 {[%clk 0:00:59.3]} 29.
Rb2 {[%clk 0:01:31.3]} 29... Rdb8 {[%clk 0:00:48.9]} 30. Rdb1 {[%clk 0:01:31]}
30... Qc7 {[%clk 0:00:43.1]} 31. Kf2 {[%clk 0:01:24.7]} 31... Ke7 {[%clk
0:00:42.8]} 32. Qc3 {[%clk 0:01:13.2]} 32... Kf6 {[%clk 0:00:41.3]} 33. g3
{[%clk 0:01:03.3]} 33... g5 {[%clk 0:00:41.2]} 34. Qd2 {[%clk 0:00:56.8]} 34...
Kg6 {[%clk 0:00:39.3]} 35. g4 {[%clk 0:00:45]} 35... Kxh6 {[%clk 0:00:34.3]} 36.
Kg3 {[%clk 0:00:43.3]} 36... Kg6 {[%clk 0:00:34]} 37. Qh2 {[%clk 0:00:35.4]}
37... h6 {[%clk 0:00:32.9]} 38. Qh5+ {[%clk 0:00:28.7]} 38... Kg7 {[%clk
0:00:33.2]} 39. d6 {[%clk 0:00:29.2]} 39... Qd7 {[%clk 0:00:25.6]} 40. Rh1
{[%clk 0:00:28.6]} 40... Qxd6 {[%clk 0:00:20.4]} 41. Qxf7+ {[%clk 0:00:27.4]}
41... Kh8 {[%clk 0:00:20.5]} 42. Rbh2 {[%clk 0:00:24.5]} 42... Qf8 {[%clk
0:00:14]} 43. Rxh6+ {[%clk 0:00:08.1]} 43... Rxh6 {[%clk 0:00:13.5]} 44. Qxf8+
{[%clk 0:00:08.1]} 44... Rxf8 {[%clk 0:00:14.4]} 45. Rxh6+ {[%clk 0:00:08.4]}
45... Kg7 {[%clk 0:00:15.3]} 46. Ra6 {[%clk 0:00:08]} 46... Rxf3+ {[%clk
0:00:15.5]} 47. Kg2 {[%clk 0:00:08.6]} 47... Rf4 {[%clk 0:00:15.6]} 48. Rxa7+
{[%clk 0:00:08.9]} 48... Kf8 {[%clk 0:00:16.1]} 49. Bd5 {[%clk 0:00:09.5]} 49...
Rxg4+ {[%clk 0:00:16.3]} 50. Kf2 {[%clk 0:00:09.4]} 50... Rf4+ {[%clk
0:00:16.9]} 51. Ke1 {[%clk 0:00:09.8]} 51... g4 {[%clk 0:00:17]} 52. Ra8+ {[%clk
0:00:10.1]} 52... Ke7 {[%clk 0:00:17]} 53. Rg8 {[%clk 0:00:10.3]} 53... Nf3+
{[%clk 0:00:12.5]} 54. Ke2 {[%clk 0:00:10.2]} 54... Nd4+ {[%clk 0:00:13.4]} 55.
Kd3 {[%clk 0:00:09.9]} 55... Rf3+ {[%clk 0:00:13.4]} 56. Kc4 {[%clk 0:00:10.5]}
56... g3 {[%clk 0:00:13.9]} 57. a4 {[%clk 0:00:10.6]} 57... Ra3 {[%clk
0:00:13.9]} 58. Kxc5 {[%clk 0:00:08.6]} 58... Ne2 {[%clk 0:00:13.6]} 59. Kb4
{[%clk 0:00:08.1]} 59... Ra1 {[%clk 0:00:12.6]} 60. Bc4 {[%clk 0:00:08.6]} 60...
Rb1+ {[%clk 0:00:09.7]} 61. Kc5 {[%clk 0:00:08.8]} 61... Rc1 {[%clk 0:00:10.3]}
62. Kb4 {[%clk 0:00:06.2]} 62... Rb1+ {[%clk 0:00:10]} 63. Kc5 {[%clk 0:00:05]}
63... Rc1 {[%clk 0:00:10.9]} 64. a5 {[%clk 0:00:05.2]} 64... Rb1 {[%clk
0:00:11.8]} 65. a6 {[%clk 0:00:05.5]} 65... Rc1 {[%clk 0:00:12.7]} 66. a7 {[%clk
0:00:05.9]} 66... g2 {[%clk 0:00:11.2]} 67. Rxg2 {[%clk 0:00:05.3]} 67... Ra1
{[%clk 0:00:10.1]} 68. Rxe2 {[%clk 0:00:05.4]} 68... Rxa7 {[%clk 0:00:09.7]} 69.
Bd5 {[%clk 0:00:06.2]} 69... Ra5+ {[%clk 0:00:09.4]} 70. Kb6 {[%clk 0:00:06.8]}
70... Ra3 {[%clk 0:00:09.6]} 71. Rf2 {[%clk 0:00:07.3]} 71... Rc3 {[%clk
0:00:09]} 72. Rf7+ {[%clk 0:00:06.7]} 72... Kd6 {[%clk 0:00:09.3]} 73. Rf6+
{[%clk 0:00:07.3]} 73... Kd7 {[%clk 0:00:10.2]} 74. Rc6 {[%clk 0:00:07.2]} 74...
Re3 {[%clk 0:00:08.5]} 75. Rc4 {[%clk 0:00:06]} 75... Kd6 {[%clk 0:00:08.3]} 76.
Kb5 {[%clk 0:00:05.5]} 76... Rb3+ {[%clk 0:00:08.4]} 77. Ka4 {[%clk 0:00:05.7]}
77... Re3 {[%clk 0:00:08.2]} 78. Rc6+ {[%clk 0:00:05.3]} 78... Kd7 {[%clk
0:00:08.5]} 79. Kb4 {[%clk 0:00:05.9]} 79... Re1 {[%clk 0:00:08]} 80. Kc3 {[%clk
0:00:06.2]} 80... Rc1+ {[%clk 0:00:08]} 81. Kb4 {[%clk 0:00:06.5]} 81... Rxc6
{[%clk 0:00:08.9]} 82. Bxc6+ {[%clk 0:00:06.8]} 82... Kxc6 {[%clk 0:00:09.8]}
83. Kc4 {[%clk 0:00:07.5]} 83... Kd6 {[%clk 0:00:10.3]} 84. Kb5 {[%clk
0:00:08.1]} 84... Ke6 {[%clk 0:00:10.6]} 85. Kc5 {[%clk 0:00:08.7]} 85... Kf7
{[%clk 0:00:11]} 86. Kd6 {[%clk 0:00:08.9]} 86... Ke8 {[%clk 0:00:11.5]} 87.
Kxe5 {[%clk 0:00:07.9]} 87... Ke7 {[%clk 0:00:12]} 88. Kd5 {[%clk 0:00:08.6]}
88... Kd7 {[%clk 0:00:12.5]} 89. Ke5 {[%clk 0:00:09.2]} 89... Ke7 {[%clk
0:00:13]} 90. Kf4 {[%clk 0:00:09.8]} 90... Kf6 {[%clk 0:00:13.3]} 91. Ke3 {[%clk
0:00:10.5]} 91... Ke5 {[%clk 0:00:13.7]} 92. Kd3 {[%clk 0:00:11.4]} 92... Ke6
{[%clk 0:00:14.1]} 93. Kd4 {[%clk 0:00:12.3]} 93... Kd6 {[%clk 0:00:14.3]} 94.
e5+ {[%clk 0:00:13]} 94... Ke6 {[%clk 0:00:14.7]} 95. Ke4 {[%clk 0:00:13.7]}
95... Ke7 {[%clk 0:00:15.3]} 96. Kd5 {[%clk 0:00:14.6]} 96... Kd7 {[%clk
0:00:15.9]} 97. e6+ {[%clk 0:00:15.1]} 97... Ke7 {[%clk 0:00:16.6]} 98. Ke5
{[%clk 0:00:16]} 98... Ke8 {[%clk 0:00:17]} 99. Kd6 {[%clk 0:00:16.9]} 99... Kd8
{[%clk 0:00:17.4]} 100. e7+ {[%clk 0:00:17.8]} 100... Ke8 {[%clk 0:00:17.9]}
101. Ke6 {[%clk 0:00:18.7]} 1/2-1/2